[Event "Titled Tuesday Blitz August 22 Late 2023"]
[White "WindWhistler11"]
[Black "Koziorowicz, Michal"]
[BlackFideId "21809194"]
[WhiteElo "2486"]
[BlackElo "2659"]
[Result "1-0"]
[Round "6"]
[TimeControl "180+1"]
[Date "2023.08.22"]
[WhiteClock "0:00:18"]
[BlackClock "0:00:07"]
[Board "93"]

1. Nf3 {[%clk 0:03:00]}  d5 {[%clk 0:02:59]} 2. g3 {[%clk 0:03:00]}  c6 {[%clk 0:02:59]} 3. c4 {[%clk 0:03:01]}  Nf6 {[%clk 0:02:57]} 4. Bg2 {[%clk 0:02:59]}  dxc4 {[%clk 0:02:57]} 5. a4 {[%clk 0:02:49]}  Nbd7 {[%clk 0:02:54]} 6. Na3 {[%clk 0:02:48]}  g6 {[%clk 0:02:32]} 7. Nxc4 {[%clk 0:02:48]}  Bg7 {[%clk 0:02:33]} 8. O-O {[%clk 0:02:48]}  O-O {[%clk 0:02:34]} 9. Qc2 {[%clk 0:02:38]}  Nb6 {[%clk 0:02:31]} 10. Nce5 {[%clk 0:02:34]}  Be6 {[%clk 0:02:31]} 11. a5 {[%clk 0:02:22]}  Nbd7 {[%clk 0:02:18]} 12. a6 {[%clk 0:02:21]}  Nxe5 {[%clk 0:02:15]} 13. Nxe5 {[%clk 0:02:20]}  Bd5 {[%clk 0:02:04]} 14. axb7 {[%clk 0:02:12]}  Rb8 {[%clk 0:02:01]} 15. Nxc6 {[%clk 0:02:09]}  Bxc6 {[%clk 0:01:59]} 16. Qxc6 {[%clk 0:02:03]}  e6 {[%clk 0:01:30]} 17. d3 {[%clk 0:01:59]}  Nd5 {[%clk 0:01:30]} 18. Bxd5 {[%clk 0:01:49]}  Qxd5 {[%clk 0:01:29]} 19. Qxd5 {[%clk 0:01:45]}  exd5 {[%clk 0:01:30]} 20. Rxa7 {[%clk 0:01:45]}  Be5 {[%clk 0:01:26]} 21. Bf4 {[%clk 0:01:39]}  Bxf4 {[%clk 0:01:24]} 22. gxf4 {[%clk 0:01:39]}  Kg7 {[%clk 0:01:24]} 23. Rc1 {[%clk 0:01:37]}  Kf6 {[%clk 0:01:24]} 24. Rc7 {[%clk 0:01:36]}  Rfe8 {[%clk 0:01:15]} 25. e3 {[%clk 0:01:33]}  h5 {[%clk 0:01:13]} 26. Ra6+ {[%clk 0:01:26]}  Re6 {[%clk 0:01:10]} 27. Ra5 {[%clk 0:01:20]}  Rb6 {[%clk 0:01:06]} 28. Rxd5 {[%clk 0:01:16]}  R8xb7 {[%clk 0:01:04]} 29. Rxb7 {[%clk 0:01:05]}  Rxb7 {[%clk 0:01:05]} 30. h4 {[%clk 0:00:56]}  Rxb2 {[%clk 0:01:05]} 31. Kg2 {[%clk 0:00:57]}  Ke6 {[%clk 0:01:03]} 32. e4 {[%clk 0:00:56]}  Rb1 {[%clk 0:00:56]} 33. f5+ {[%clk 0:00:55]}  Kf6 {[%clk 0:00:51]} 34. Rd6+ {[%clk 0:00:49]}  Ke7 {[%clk 0:00:47]} 35. Rd5 {[%clk 0:00:43]}  Rd1 {[%clk 0:00:39]} 36. fxg6 {[%clk 0:00:37]}  fxg6 {[%clk 0:00:40]} 37. Kg3 {[%clk 0:00:37]}  Ke6 {[%clk 0:00:38]} 38. Kf4 {[%clk 0:00:35]}  Rg1 {[%clk 0:00:36]} 39. Rg5 {[%clk 0:00:30]}  Rd1 {[%clk 0:00:28]} 40. Rxg6+ {[%clk 0:00:25]}  Ke7 {[%clk 0:00:25]} 41. Rg3 {[%clk 0:00:23]}  Rd2 {[%clk 0:00:22]} 42. Rf3 {[%clk 0:00:23]}  Rd1 {[%clk 0:00:13]} 43. Kg5 {[%clk 0:00:20]}  Rg1+ {[%clk 0:00:13]} 44. Kxh5 {[%clk 0:00:20]}  Ke6 {[%clk 0:00:13]} 45. Rg3 {[%clk 0:00:18]}  Rf1 {[%clk 0:00:13]} 46. Rf3 {[%clk 0:00:18]}  Ke5 {[%clk 0:00:13]} 47. Kh6 {[%clk 0:00:17]}  Rh1 {[%clk 0:00:09]} 48. h5 {[%clk 0:00:17]}  Ke6 {[%clk 0:00:09]} 49. Rf5 {[%clk 0:00:16]}  Rh3 {[%clk 0:00:09]} 50. Kg6 {[%clk 0:00:14]}  Rxd3 {[%clk 0:00:08]} 51. h6 {[%clk 0:00:14]}  Rd8 {[%clk 0:00:09]} 52. h7 {[%clk 0:00:13]}  Ke7 {[%clk 0:00:05]} 53. f4 {[%clk 0:00:13]}  Rd6+ {[%clk 0:00:04]} 54. Kg7 {[%clk 0:00:13]}  Rd8 {[%clk 0:00:02]} 55. Re5+ {[%clk 0:00:12]}  Kd7 {[%clk 0:00:01]} 56. Rd5+ {[%clk 0:00:13]}  Kc7 {[%clk 0:00:02]} 57. Rxd8 {[%clk 0:00:13]}  Kxd8 {[%clk 0:00:02]} 58. e5 {[%clk 0:00:14]}  Ke7 {[%clk 0:00:03]} 59. f5 {[%clk 0:00:14]}  Kd7 {[%clk 0:00:03]} 60. Kh6 {[%clk 0:00:14]}  Ke7 {[%clk 0:00:04]} 61. Kg5 {[%clk 0:00:15]}  Kf7 {[%clk 0:00:04]} 62. h8=Q {[%clk 0:00:15]}  Ke7 {[%clk 0:00:04]} 63. Qh7+ {[%clk 0:00:16]}  Kf8 {[%clk 0:00:05]} 64. f6 {[%clk 0:00:16]}  Ke8 {[%clk 0:00:05]} 65. e6 {[%clk 0:00:16]}  Kf8 {[%clk 0:00:05]} 66. Kf5 {[%clk 0:00:16]}  Ke8 {[%clk 0:00:06]} 67. Ke5 {[%clk 0:00:17]}  Kf8 {[%clk 0:00:06]} 68. Kd6 {[%clk 0:00:18]}  Ke8 {[%clk 0:00:07]} 69. f7+ {[%clk 0:00:18]}  Kf8 {[%clk 0:00:07]} 70. e7# {[%clk 0:00:18]} 1-0


[Site "https://www.chess.com"]

[Event "Titled Tuesday Blitz August 22 Late 2023"]
[White "Bazilius, Augustinas"]
[Black "Martinez Reyes, Pedro Ramon"]
[WhiteFideId "12832251"]
[BlackFideId "3901807"]
[WhiteElo "2449"]
[BlackElo "2592"]
[Result "1-0"]
[Round "6"]
[TimeControl "180+1"]
[Date "2023.08.22"]
[WhiteClock "0:00:04"]
[BlackClock "0:00:49"]
[Board "96"]

1. d4 {[%clk 0:03:00]}  Nf6 {[%clk 0:02:56]} 2. c4 {[%clk 0:03:00]}  e5 {[%clk 0:02:56]} 3. dxe5 {[%clk 0:03:00]}  Ng4 {[%clk 0:02:56]} 4. Nf3 {[%clk 0:03:00]}  Nc6 {[%clk 0:02:55]} 5. Bg5 {[%clk 0:02:58]}  Be7 {[%clk 0:02:54]} 6. Bxe7 {[%clk 0:02:51]}  Qxe7 {[%clk 0:02:55]} 7. Nc3 {[%clk 0:02:47]}  Ncxe5 {[%clk 0:02:52]} 8. Nd5 {[%clk 0:02:40]}  Qd6 {[%clk 0:02:51]} 9. e3 {[%clk 0:02:14]}  Nf6 {[%clk 0:02:40]} 10. Nxe5 {[%clk 0:01:39]}  Qxe5 {[%clk 0:02:38]} 11. Nxf6+ {[%clk 0:01:33]}  Qxf6 {[%clk 0:02:39]} 12. Qd2 {[%clk 0:01:31]}  d6 {[%clk 0:02:36]} 13. Bd3 {[%clk 0:01:31]}  Bf5 {[%clk 0:02:28]} 14. Bxf5 {[%clk 0:01:13]}  Qxf5 {[%clk 0:02:29]} 15. Qd5 {[%clk 0:01:14]}  Qxd5 {[%clk 0:01:51]} 16. cxd5 {[%clk 0:01:15]}  Kd7 {[%clk 0:01:52]} 17. Kd2 {[%clk 0:01:14]}  c6 {[%clk 0:01:51]} 18. Kd3 {[%clk 0:01:14]}  c5 {[%clk 0:01:44]} 19. e4 {[%clk 0:01:01]}  Rhf8 {[%clk 0:01:41]} 20. Rhe1 {[%clk 0:00:54]}  Rae8 {[%clk 0:01:40]} 21. f4 {[%clk 0:00:51]}  f6 {[%clk 0:01:40]} 22. a4 {[%clk 0:00:49]}  b6 {[%clk 0:01:34]} 23. Rac1 {[%clk 0:00:35]}  g5 {[%clk 0:01:29]} 24. g3 {[%clk 0:00:34]}  Rg8 {[%clk 0:01:26]} 25. Rg1 {[%clk 0:00:30]}  Re7 {[%clk 0:01:22]} 26. Rce1 {[%clk 0:00:18]}  Reg7 {[%clk 0:01:22]} 27. fxg5 {[%clk 0:00:15]}  fxg5 {[%clk 0:01:22]} 28. Rgf1 {[%clk 0:00:14]}  Re7 {[%clk 0:01:20]} 29. Rf5 {[%clk 0:00:14]}  Rgg7 {[%clk 0:01:16]} 30. Ref1 {[%clk 0:00:12]}  a6 {[%clk 0:01:16]} 31. Rf8 {[%clk 0:00:09]}  Kc7 {[%clk 0:01:14]} 32. Ra8 {[%clk 0:00:08]}  Kb7 {[%clk 0:01:13]} 33. Rd8 {[%clk 0:00:08]}  Rd7 {[%clk 0:01:13]} 34. Rxd7+ {[%clk 0:00:08]}  Rxd7 {[%clk 0:01:14]} 35. Rf6 {[%clk 0:00:05]}  b5 {[%clk 0:01:14]} 36. axb5 {[%clk 0:00:06]}  axb5 {[%clk 0:01:15]} 37. h4 {[%clk 0:00:05]}  gxh4 {[%clk 0:01:15]} 38. gxh4 {[%clk 0:00:06]}  Kb6 {[%clk 0:01:16]} 39. e5 {[%clk 0:00:06]}  Ka5 {[%clk 0:01:10]} 40. e6 {[%clk 0:00:06]}  Re7 {[%clk 0:01:09]} 41. Rf7 {[%clk 0:00:06]}  Re8 {[%clk 0:01:09]} 42. Ke4 {[%clk 0:00:04]}  Kb4 {[%clk 0:01:05]} 43. Rxh7 {[%clk 0:00:03]}  Kb3 {[%clk 0:01:04]} 44. Rb7 {[%clk 0:00:03]}  b4 {[%clk 0:01:04]} 45. Kf5 {[%clk 0:00:03]}  Kxb2 {[%clk 0:01:02]} 46. Kf6 {[%clk 0:00:04]}  Rh8 {[%clk 0:00:58]} 47. Kf7 {[%clk 0:00:04]}  Rh7+ {[%clk 0:00:57]} 48. Ke8 {[%clk 0:00:01]}  Rxb7 {[%clk 0:00:58]} 49. e7 {[%clk 0:00:02]}  c4 {[%clk 0:00:58]} 50. h5 {[%clk 0:00:02]}  c3 {[%clk 0:00:57]} 51. h6 {[%clk 0:00:03]}  c2 {[%clk 0:00:58]} 52. h7 {[%clk 0:00:04]}  c1=Q {[%clk 0:00:56]} 53. h8=Q+ {[%clk 0:00:04]}  Qc3 {[%clk 0:00:57]} 54. Qh2+ {[%clk 0:00:03]}  Qc2 {[%clk 0:00:54]} 55. Qxd6 {[%clk 0:00:03]}  Qc8+ {[%clk 0:00:53]} 56. Kf7 {[%clk 0:00:03]}  Qf5+ {[%clk 0:00:53]} 57. Qf6+ {[%clk 0:00:03]}  Qxf6+ {[%clk 0:00:53]} 58. Kxf6 {[%clk 0:00:04]}  Rb8 {[%clk 0:00:48]} 59. d6 {[%clk 0:00:04]}  Kc3 {[%clk 0:00:48]} 60. d7 {[%clk 0:00:05]}  b3 {[%clk 0:00:48]} 61. d8=Q {[%clk 0:00:04]}  Rb6+ {[%clk 0:00:49]} 62. Qxb6 {[%clk 0:00:04]} 1-0


[Site "https://www.chess.com"]

[Event "Titled Tuesday Blitz August 22 Late 2023"]
[White "Mesa Cruz, Juan Carlos"]
[Black "Grebeniuk, Semen"]
[WhiteFideId "6423400"]
[BlackFideId "14117509"]
[WhiteElo "2429"]
[BlackElo "2575"]
[Result "1-0"]
[Round "6"]
[TimeControl "180+1"]
[Date "2023.08.22"]
[WhiteClock "0:00:09"]
[BlackClock "0:00:12"]
[Board "97"]

1. Nf3 {[%clk 0:02:41]}  f5 {[%clk 0:02:59]} 2. d4 {[%clk 0:02:40]}  Nf6 {[%clk 0:03:00]} 3. c4 {[%clk 0:02:41]}  d6 {[%clk 0:03:00]} 4. g3 {[%clk 0:02:41]}  g6 {[%clk 0:03:00]} 5. Bg2 {[%clk 0:02:42]}  Bg7 {[%clk 0:03:01]} 6. Nc3 {[%clk 0:02:42]}  O-O {[%clk 0:03:01]} 7. d5 {[%clk 0:02:43]}  a5 {[%clk 0:03:01]} 8. O-O {[%clk 0:02:43]}  Na6 {[%clk 0:03:02]} 9. a3 {[%clk 0:02:38]}  Nc5 {[%clk 0:03:01]} 10. Rb1 {[%clk 0:02:38]}  a4 {[%clk 0:03:00]} 11. Be3 {[%clk 0:02:37]}  Bd7 {[%clk 0:02:56]} 12. Bd4 {[%clk 0:02:33]}  b6 {[%clk 0:02:49]} 13. Re1 {[%clk 0:02:30]}  h6 {[%clk 0:02:48]} 14. Nd2 {[%clk 0:02:20]}  Ng4 {[%clk 0:02:33]} 15. Bxg7 {[%clk 0:02:18]}  Kxg7 {[%clk 0:02:34]} 16. h3 {[%clk 0:02:13]}  Nf6 {[%clk 0:02:23]} 17. Kh2 {[%clk 0:02:04]}  Nh5 {[%clk 0:02:01]} 18. Bf3 {[%clk 0:01:55]}  Qe8 {[%clk 0:01:53]} 19. Bxh5 {[%clk 0:01:46]}  gxh5 {[%clk 0:01:54]} 20. e3 {[%clk 0:01:41]}  Qg6 {[%clk 0:01:47]} 21. Nf3 {[%clk 0:01:36]}  Kh7 {[%clk 0:01:30]} 22. Ne2 {[%clk 0:01:36]}  e5 {[%clk 0:01:26]} 23. dxe6 {[%clk 0:01:31]}  Nxe6 {[%clk 0:01:27]} 24. Nh4 {[%clk 0:01:28]}  Qf7 {[%clk 0:01:24]} 25. Nd4 {[%clk 0:01:19]}  Ng5 {[%clk 0:01:20]} 26. Qd3 {[%clk 0:01:11]}  Rae8 {[%clk 0:01:14]} 27. Rbc1 {[%clk 0:01:04]}  Bc8 {[%clk 0:01:00]} 28. Nb5 {[%clk 0:00:50]}  Bb7 {[%clk 0:00:56]} 29. Nc3 {[%clk 0:00:50]}  Ne4 {[%clk 0:00:51]} 30. Rc2 {[%clk 0:00:43]}  Qf6 {[%clk 0:00:43]} 31. Nd5 {[%clk 0:00:40]}  Qf7 {[%clk 0:00:41]} 32. Ng2 {[%clk 0:00:18]}  Re5 {[%clk 0:00:40]} 33. Rd1 {[%clk 0:00:15]}  Ree8 {[%clk 0:00:34]} 34. h4 {[%clk 0:00:14]}  Nc5 {[%clk 0:00:26]} 35. Qe2 {[%clk 0:00:13]}  Rg8 {[%clk 0:00:23]} 36. Ngf4 {[%clk 0:00:13]}  Rg4 {[%clk 0:00:23]} 37. f3 {[%clk 0:00:11]}  Rgg8 {[%clk 0:00:23]} 38. Rcd2 {[%clk 0:00:10]}  Nb3 {[%clk 0:00:20]} 39. Rd3 {[%clk 0:00:09]}  Nc5 {[%clk 0:00:20]} 40. Rc3 {[%clk 0:00:10]}  Re5 {[%clk 0:00:21]} 41. Qf2 {[%clk 0:00:10]}  Rge8 {[%clk 0:00:20]} 42. Nd3 {[%clk 0:00:10]}  Nxd3 {[%clk 0:00:17]} 43. Rcxd3 {[%clk 0:00:11]}  R5e6 {[%clk 0:00:13]} 44. Nf4 {[%clk 0:00:10]}  Re5 {[%clk 0:00:12]} 45. Ne2 {[%clk 0:00:10]}  Qxc4 {[%clk 0:00:11]} 46. Rd4 {[%clk 0:00:09]}  Qf7 {[%clk 0:00:11]} 47. R4d3 {[%clk 0:00:08]}  R8e7 {[%clk 0:00:11]} 48. Nc3 {[%clk 0:00:07]}  Qe6 {[%clk 0:00:11]} 49. Re1 {[%clk 0:00:06]}  Ba6 {[%clk 0:00:10]} 50. Rd4 {[%clk 0:00:04]}  Rxe3 {[%clk 0:00:10]} 51. Rxe3 {[%clk 0:00:03]}  Qxe3 {[%clk 0:00:11]} 52. Qxe3 {[%clk 0:00:03]}  Rxe3 {[%clk 0:00:12]} 53. Rf4 {[%clk 0:00:03]}  Kg6 {[%clk 0:00:09]} 54. Rxa4 {[%clk 0:00:03]}  Bb7 {[%clk 0:00:06]} 55. Rd4 {[%clk 0:00:03]}  Bxf3 {[%clk 0:00:07]} 56. Kg1 {[%clk 0:00:04]}  Be4 {[%clk 0:00:06]} 57. Kf2 {[%clk 0:00:04]}  Rf3+ {[%clk 0:00:05]} 58. Ke2 {[%clk 0:00:05]}  Rxg3 {[%clk 0:00:05]} 59. Nxe4 {[%clk 0:00:05]}  fxe4 {[%clk 0:00:05]} 60. Rxe4 {[%clk 0:00:06]}  Rg4 {[%clk 0:00:06]} 61. Re7 {[%clk 0:00:06]}  Rc4 {[%clk 0:00:05]} 62. Kd3 {[%clk 0:00:06]}  Rc5 {[%clk 0:00:05]} 63. b4 {[%clk 0:00:07]}  Rc6 {[%clk 0:00:05]} 64. a4 {[%clk 0:00:07]}  Kf6 {[%clk 0:00:05]} 65. Rh7 {[%clk 0:00:06]}  Kg6 {[%clk 0:00:05]} 66. Re7 {[%clk 0:00:07]}  Kf5 {[%clk 0:00:05]} 67. Kd4 {[%clk 0:00:06]}  Kg4 {[%clk 0:00:05]} 68. Re4+ {[%clk 0:00:05]}  Kg3 {[%clk 0:00:05]} 69. Re3+ {[%clk 0:00:02]}  Kxh4 {[%clk 0:00:05]} 70. Rc3 {[%clk 0:00:03]}  Rxc3 {[%clk 0:00:03]} 71. Kxc3 {[%clk 0:00:04]}  Kg3 {[%clk 0:00:04]} 72. a5 {[%clk 0:00:05]}  bxa5 {[%clk 0:00:05]} 73. bxa5 {[%clk 0:00:05]}  h4 {[%clk 0:00:05]} 74. a6 {[%clk 0:00:06]}  h3 {[%clk 0:00:06]} 75. a7 {[%clk 0:00:07]}  c6 {[%clk 0:00:05]} 76. a8=Q {[%clk 0:00:08]}  h2 {[%clk 0:00:06]} 77. Qxc6 {[%clk 0:00:07]}  Kf2 {[%clk 0:00:07]} 78. Qh1 {[%clk 0:00:07]}  Kg3 {[%clk 0:00:07]} 79. Kd4 {[%clk 0:00:07]}  h5 {[%clk 0:00:08]} 80. Kd5 {[%clk 0:00:07]}  Kh3 {[%clk 0:00:08]} 81. Kxd6 {[%clk 0:00:08]}  Kg3 {[%clk 0:00:09]} 82. Ke5 {[%clk 0:00:08]}  h4 {[%clk 0:00:09]} 83. Ke4 {[%clk 0:00:09]}  h3 {[%clk 0:00:10]} 84. Ke3 {[%clk 0:00:10]}  Kg4 {[%clk 0:00:10]} 85. Kf2 {[%clk 0:00:10]}  Kh4 {[%clk 0:00:11]} 86. Qxh2 {[%clk 0:00:09]}  Kg4 {[%clk 0:00:12]} 1-0


[Site "https://www.chess.com"]

[Event "Titled Tuesday Blitz August 22 Late 2023"]
[White "Santos Flores, Alberto"]
[Black "Colpe, Malte"]
[WhiteFideId "3601234"]
[BlackFideId "24623075"]
[WhiteElo "2573"]
[BlackElo "2427"]
[Result "0-1"]
[Round "6"]
[TimeControl "180+1"]
[Date "2023.08.22"]
[WhiteClock "0:00:05"]
[BlackClock "0:00:18"]
[Board "98"]

1. e4 {[%clk 0:02:57]}  c5 {[%clk 0:02:59]} 2. Nf3 {[%clk 0:02:57]}  d6 {[%clk 0:02:59]} 3. Bb5+ {[%clk 0:02:56]}  Nc6 {[%clk 0:02:57]} 4. Bxc6+ {[%clk 0:02:55]}  bxc6 {[%clk 0:02:57]} 5. O-O {[%clk 0:02:55]}  e5 {[%clk 0:02:52]} 6. d3 {[%clk 0:02:51]}  Ne7 {[%clk 0:02:52]} 7. Nc3 {[%clk 0:02:41]}  Ng6 {[%clk 0:02:51]} 8. Ne2 {[%clk 0:02:37]}  Be7 {[%clk 0:02:50]} 9. Nd2 {[%clk 0:02:37]}  O-O {[%clk 0:02:47]} 10. f4 {[%clk 0:02:35]}  exf4 {[%clk 0:02:46]} 11. Nxf4 {[%clk 0:02:27]}  Nxf4 {[%clk 0:02:40]} 12. Rxf4 {[%clk 0:02:28]}  f5 {[%clk 0:02:39]} 13. exf5 {[%clk 0:02:07]}  Bg5 {[%clk 0:02:32]} 14. Rf1 {[%clk 0:02:06]}  Bxf5 {[%clk 0:02:27]} 15. Ne4 {[%clk 0:02:04]}  Bxc1 {[%clk 0:02:20]} 16. Qxc1 {[%clk 0:02:03]}  Bxe4 {[%clk 0:02:19]} 17. dxe4 {[%clk 0:02:01]}  Rxf1+ {[%clk 0:02:15]} 18. Qxf1 {[%clk 0:02:01]}  Qf6 {[%clk 0:02:14]} 19. Qxf6 {[%clk 0:02:00]}  gxf6 {[%clk 0:02:14]} 20. Kf2 {[%clk 0:02:01]}  Kf7 {[%clk 0:02:14]} 21. Rd1 {[%clk 0:01:57]}  Ke6 {[%clk 0:02:13]} 22. Rd3 {[%clk 0:01:57]}  Rb8 {[%clk 0:02:12]} 23. b3 {[%clk 0:01:51]}  Rb4 {[%clk 0:02:10]} 24. c4 {[%clk 0:01:50]}  a5 {[%clk 0:02:08]} 25. Rh3 {[%clk 0:01:44]}  a4 {[%clk 0:02:08]} 26. Ke2 {[%clk 0:01:41]}  axb3 {[%clk 0:02:05]} 27. axb3 {[%clk 0:01:41]}  Rb7 {[%clk 0:02:05]} 28. Kd2 {[%clk 0:01:41]}  Rg7 {[%clk 0:02:04]} 29. g3 {[%clk 0:01:39]}  Ra7 {[%clk 0:01:59]} 30. Kc3 {[%clk 0:01:37]}  Ke5 {[%clk 0:01:57]} 31. Rh4 {[%clk 0:01:36]}  Rg7 {[%clk 0:01:48]} 32. Kd3 {[%clk 0:01:35]}  Rb7 {[%clk 0:01:46]} 33. Rh5+ {[%clk 0:01:34]}  Ke6 {[%clk 0:01:45]} 34. Kc3 {[%clk 0:01:34]}  Ra7 {[%clk 0:01:44]} 35. Kb2 {[%clk 0:01:17]}  Rg7 {[%clk 0:01:41]} 36. Kc3 {[%clk 0:01:16]}  Ra7 {[%clk 0:01:41]} 37. Kb2 {[%clk 0:01:15]}  Rg7 {[%clk 0:01:41]} 38. Kc3 {[%clk 0:01:15]}  Kf7 {[%clk 0:01:36]} 39. b4 {[%clk 0:01:06]}  Kg6 {[%clk 0:01:33]} 40. Rf5 {[%clk 0:00:58]}  cxb4+ {[%clk 0:01:33]} 41. Kxb4 {[%clk 0:00:58]}  Rb7+ {[%clk 0:01:33]} 42. Kc3 {[%clk 0:00:58]}  Rb1 {[%clk 0:01:31]} 43. Ra5 {[%clk 0:00:55]}  Re1 {[%clk 0:01:26]} 44. Kd3 {[%clk 0:00:52]}  Rd1+ {[%clk 0:01:25]} 45. Kc3 {[%clk 0:00:52]}  c5 {[%clk 0:01:02]} 46. Ra6 {[%clk 0:00:45]}  Kg5 {[%clk 0:00:59]} 47. Ra7 {[%clk 0:00:43]}  h5 {[%clk 0:00:56]} 48. Rg7+ {[%clk 0:00:41]}  Kh6 {[%clk 0:00:55]} 49. Rd7 {[%clk 0:00:40]}  Kg6 {[%clk 0:00:54]} 50. Rd8 {[%clk 0:00:40]}  Rd4 {[%clk 0:00:50]} 51. Rd7 {[%clk 0:00:36]}  Kh6 {[%clk 0:00:47]} 52. Rd8 {[%clk 0:00:36]}  Kg6 {[%clk 0:00:43]} 53. Rd7 {[%clk 0:00:35]}  f5 {[%clk 0:00:41]} 54. exf5+ {[%clk 0:00:34]}  Kxf5 {[%clk 0:00:42]} 55. Rg7 {[%clk 0:00:30]}  Kf6 {[%clk 0:00:36]} 56. Rg8 {[%clk 0:00:30]}  Kf7 {[%clk 0:00:33]} 57. Rg5 {[%clk 0:00:29]}  h4 {[%clk 0:00:32]} 58. g4 {[%clk 0:00:25]}  h3 {[%clk 0:00:32]} 59. Rh5 {[%clk 0:00:23]}  Rxg4 {[%clk 0:00:32]} 60. Rxh3 {[%clk 0:00:23]}  Rg1 {[%clk 0:00:31]} 61. Rh6 {[%clk 0:00:22]}  Ke7 {[%clk 0:00:28]} 62. h4 {[%clk 0:00:21]}  Rg3+ {[%clk 0:00:28]} 63. Kd2 {[%clk 0:00:22]}  Rh3 {[%clk 0:00:27]} 64. Rh8 {[%clk 0:00:21]}  Ke6 {[%clk 0:00:26]} 65. h5 {[%clk 0:00:20]}  Ke5 {[%clk 0:00:26]} 66. h6 {[%clk 0:00:17]}  Kd4 {[%clk 0:00:26]} 67. h7 {[%clk 0:00:16]}  Kxc4 {[%clk 0:00:25]} 68. Ke2 {[%clk 0:00:16]}  d5 {[%clk 0:00:25]} 69. Kd2 {[%clk 0:00:16]}  Rh2+ {[%clk 0:00:22]} 70. Ke3 {[%clk 0:00:16]}  d4+ {[%clk 0:00:23]} 71. Ke4 {[%clk 0:00:16]}  d3 {[%clk 0:00:22]} 72. Ke3 {[%clk 0:00:16]}  Kc3 {[%clk 0:00:20]} 73. Rd8 {[%clk 0:00:16]}  Rh3+ {[%clk 0:00:20]} 74. Ke4 {[%clk 0:00:05]}  d2 {[%clk 0:00:18]} 0-1


[Site "https://www.chess.com"]

[Event "Titled Tuesday Blitz August 22 Late 2023"]
[White "Sala, Giulia"]
[Black "Musovic, Armin"]
[WhiteFideId "2840451"]
[BlackFideId "939935"]
[WhiteElo "2328"]
[BlackElo "2550"]
[Result "1-0"]
[Round "6"]
[TimeControl "180+1"]
[Date "2023.08.22"]
[WhiteClock "0:00:13"]
[BlackClock "0:00:12"]
[Board "99"]

1. d4 {[%clk 0:03:00]}  d5 {[%clk 0:02:58]} 2. c4 {[%clk 0:03:00]}  c5 {[%clk 0:02:59]} 3. dxc5 {[%clk 0:02:43]}  e6 {[%clk 0:02:57]} 4. cxd5 {[%clk 0:02:40]}  Bxc5 {[%clk 0:02:54]} 5. Nc3 {[%clk 0:02:38]}  Nf6 {[%clk 0:02:54]} 6. dxe6 {[%clk 0:02:28]}  Qxd1+ {[%clk 0:02:53]} 7. Nxd1 {[%clk 0:02:29]}  Bxe6 {[%clk 0:02:54]} 8. Be3 {[%clk 0:02:21]}  Bb4+ {[%clk 0:02:47]} 9. Bd2 {[%clk 0:02:15]}  Nc6 {[%clk 0:02:41]} 10. Bc3 {[%clk 0:02:01]}  O-O-O {[%clk 0:02:24]} 11. Nf3 {[%clk 0:01:55]}  Ne4 {[%clk 0:02:18]} 12. e3 {[%clk 0:01:46]}  Kb8 {[%clk 0:01:52]} 13. Be2 {[%clk 0:01:39]}  g5 {[%clk 0:01:35]} 14. a3 {[%clk 0:01:24]}  Nxc3 {[%clk 0:01:24]} 15. Nxc3 {[%clk 0:01:09]}  Be7 {[%clk 0:01:22]} 16. O-O {[%clk 0:01:07]}  g4 {[%clk 0:01:17]} 17. Ne1 {[%clk 0:00:57]}  Rd2 {[%clk 0:01:14]} 18. Nd3 {[%clk 0:00:50]}  Bb3 {[%clk 0:01:07]} 19. Rfe1 {[%clk 0:00:40]}  h5 {[%clk 0:01:03]} 20. Ne4 {[%clk 0:00:36]}  Rc2 {[%clk 0:00:53]} 21. Rac1 {[%clk 0:00:36]}  Rd8 {[%clk 0:00:48]} 22. Nec5 {[%clk 0:00:23]}  Bxc5 {[%clk 0:00:33]} 23. Rxc2 {[%clk 0:00:22]}  Bxc2 {[%clk 0:00:24]} 24. Nxc5 {[%clk 0:00:23]}  Rd2 {[%clk 0:00:23]} 25. h3 {[%clk 0:00:18]}  f5 {[%clk 0:00:23]} 26. hxg4 {[%clk 0:00:18]}  hxg4 {[%clk 0:00:23]} 27. f3 {[%clk 0:00:18]}  Ne5 {[%clk 0:00:16]} 28. Kf1 {[%clk 0:00:12]}  b6 {[%clk 0:00:14]} 29. Ne6 {[%clk 0:00:12]}  Bb3 {[%clk 0:00:10]} 30. Nd4 {[%clk 0:00:10]}  Rxb2 {[%clk 0:00:11]} 31. Nxf5 {[%clk 0:00:11]}  gxf3 {[%clk 0:00:06]} 32. gxf3 {[%clk 0:00:12]}  Nc6 {[%clk 0:00:06]} 33. Rc1 {[%clk 0:00:11]}  Na5 {[%clk 0:00:06]} 34. f4 {[%clk 0:00:10]}  Be6 {[%clk 0:00:06]} 35. Nd4 {[%clk 0:00:10]}  Bh3+ {[%clk 0:00:06]} 36. Ke1 {[%clk 0:00:10]}  Ra2 {[%clk 0:00:07]} 37. Bf3 {[%clk 0:00:11]}  a6 {[%clk 0:00:04]} 38. f5 {[%clk 0:00:11]}  Rxa3 {[%clk 0:00:04]} 39. f6 {[%clk 0:00:11]}  Rxe3+ {[%clk 0:00:04]} 40. Kf2 {[%clk 0:00:12]}  Re8 {[%clk 0:00:05]} 41. f7 {[%clk 0:00:10]}  Rf8 {[%clk 0:00:05]} 42. Bd5 {[%clk 0:00:10]}  Bg4 {[%clk 0:00:04]} 43. Rg1 {[%clk 0:00:10]}  Bh5 {[%clk 0:00:03]} 44. Rg8 {[%clk 0:00:10]}  Kc7 {[%clk 0:00:02]} 45. Rxf8 {[%clk 0:00:10]}  Bxf7 {[%clk 0:00:03]} 46. Rxf7+ {[%clk 0:00:11]}  Kd6 {[%clk 0:00:03]} 47. Bf3 {[%clk 0:00:11]}  b5 {[%clk 0:00:03]} 48. Rf6+ {[%clk 0:00:11]}  Kc5 {[%clk 0:00:04]} 49. Rxa6 {[%clk 0:00:10]}  Nc4 {[%clk 0:00:04]} 50. Nxb5 {[%clk 0:00:09]}  Kxb5 {[%clk 0:00:04]} 51. Ra1 {[%clk 0:00:09]}  Kc5 {[%clk 0:00:04]} 52. Rc1 {[%clk 0:00:10]}  Kd4 {[%clk 0:00:05]} 53. Rd1+ {[%clk 0:00:10]}  Ke5 {[%clk 0:00:05]} 54. Kg3 {[%clk 0:00:09]}  Nd6 {[%clk 0:00:04]} 55. Rd5+ {[%clk 0:00:09]}  Ke6 {[%clk 0:00:05]} 56. Ra5 {[%clk 0:00:10]}  Nf5+ {[%clk 0:00:04]} 57. Kf4 {[%clk 0:00:10]}  Ne7 {[%clk 0:00:05]} 58. Ra6+ {[%clk 0:00:10]}  Kd7 {[%clk 0:00:06]} 59. Bg4+ {[%clk 0:00:09]}  Kc7 {[%clk 0:00:06]} 60. Ra7+ {[%clk 0:00:10]}  Kd6 {[%clk 0:00:07]} 61. Rd7+ {[%clk 0:00:10]}  Kc5 {[%clk 0:00:07]} 62. Rxe7 {[%clk 0:00:10]}  Kb4 {[%clk 0:00:08]} 63. Re5 {[%clk 0:00:11]}  Ka3 {[%clk 0:00:09]} 64. Ke4 {[%clk 0:00:12]}  Kb2 {[%clk 0:00:10]} 65. Kd4 {[%clk 0:00:12]}  Ka1 {[%clk 0:00:10]} 66. Rb5 {[%clk 0:00:13]}  Ka2 {[%clk 0:00:11]} 67. Kc3 {[%clk 0:00:13]}  Ka3 {[%clk 0:00:12]} 68. Ra5# {[%clk 0:00:13]} 1-0


[Site "https://www.chess.com"]